[Event "Titled Tuesday Blitz December 13 Early 2022"]
[White "Xiong, Jeffery"]
[Black "Navara, David"]
[WhiteFideId "2047640"]
[BlackFideId "309095"]
[WhiteElo "2726"]
[BlackElo "2676"]
[Result "1/2-1/2"]
[Round "06"]
[TimeControl "180+1"]
[Date "2022.12.13"]
[WhiteClock "0:00:07"]
[BlackClock "0:00:03"]

1. d4 {[%clk 0:03:00]}  Nf6 {[%clk 0:02:59]} 2. c4 {[%clk 0:03:01]}  e6 {[%clk 0:02:59]} 3. Nc3 {[%clk 0:03:01]}  Bb4 {[%clk 0:02:59]} 4. Nf3 {[%clk 0:03:01]}  b6 {[%clk 0:02:57]} 5. Qc2 {[%clk 0:03:01]}  Bb7 {[%clk 0:02:57]} 6. a3 {[%clk 0:03:01]}  Bxc3+ {[%clk 0:02:57]} 7. Qxc3 {[%clk 0:03:02]}  O-O {[%clk 0:02:55]} 8. e3 {[%clk 0:03:03]}  d6 {[%clk 0:02:51]} 9. Be2 {[%clk 0:03:03]}  a5 {[%clk 0:02:51]} 10. b3 {[%clk 0:03:03]}  Nbd7 {[%clk 0:02:50]} 11. O-O {[%clk 0:03:03]}  Qe7 {[%clk 0:02:49]} 12. Bb2 {[%clk 0:03:03]}  h6 {[%clk 0:02:44]} 13. Nd2 {[%clk 0:02:59]}  c5 {[%clk 0:02:44]} 14. b4 {[%clk 0:02:58]}  axb4 {[%clk 0:02:40]} 15. axb4 {[%clk 0:02:59]}  Rxa1 {[%clk 0:02:39]} 16. Rxa1 {[%clk 0:03:00]}  Ra8 {[%clk 0:02:39]} 17. Rxa8+ {[%clk 0:02:58]}  Bxa8 {[%clk 0:02:40]} 18. Qa3 {[%clk 0:02:59]}  Qd8 {[%clk 0:02:38]} 19. f3 {[%clk 0:02:57]}  Bb7 {[%clk 0:02:28]} 20. e4 {[%clk 0:02:55]}  cxd4 {[%clk 0:02:11]} 21. Bxd4 {[%clk 0:02:56]}  Qa8 {[%clk 0:02:11]} 22. Qb2 {[%clk 0:02:56]}  e5 {[%clk 0:02:10]} 23. Be3 {[%clk 0:02:55]}  Nh5 {[%clk 0:02:00]} 24. Nb1 {[%clk 0:02:55]}  Nf4 {[%clk 0:01:59]} 25. Bf1 {[%clk 0:02:54]}  Ne6 {[%clk 0:01:59]} 26. Nc3 {[%clk 0:02:54]}  Bc6 {[%clk 0:01:54]} 27. Qd2 {[%clk 0:02:53]}  Qa3 {[%clk 0:01:50]} 28. Ne2 {[%clk 0:02:50]}  h5 {[%clk 0:01:33]} 29. Kf2 {[%clk 0:02:50]}  Nf6 {[%clk 0:01:13]} 30. Qxd6 {[%clk 0:02:49]}  Bxe4 {[%clk 0:01:14]} 31. Qxb6 {[%clk 0:02:33]}  Bd3 {[%clk 0:01:06]} 32. Qb8+ {[%clk 0:02:14]}  Kh7 {[%clk 0:01:06]} 33. Qxe5 {[%clk 0:02:15]}  Bxc4 {[%clk 0:00:45]} 34. b5 {[%clk 0:02:12]}  Qb3 {[%clk 0:00:37]} 35. b6 {[%clk 0:02:03]}  Nd5 {[%clk 0:00:37]} 36. Qxh5+ {[%clk 0:02:03]}  Kg8 {[%clk 0:00:37]} 37. Qe5 {[%clk 0:02:04]}  Nxe3 {[%clk 0:00:30]} 38. Qxe3 {[%clk 0:02:02]}  Qb2 {[%clk 0:00:31]} 39. Kg1 {[%clk 0:01:58]}  Qb1 {[%clk 0:00:25]} 40. Ng3 {[%clk 0:01:56]}  Nf8 {[%clk 0:00:19]} 41. Qd4 {[%clk 0:01:50]}  Bxf1 {[%clk 0:00:17]} 42. Nxf1 {[%clk 0:01:50]}  Ne6 {[%clk 0:00:16]} 43. Qe3 {[%clk 0:01:50]}  g6 {[%clk 0:00:15]} 44. h4 {[%clk 0:01:45]}  Qb5 {[%clk 0:00:11]} 45. Ng3 {[%clk 0:01:42]}  Nc5 {[%clk 0:00:12]} 46. Ne4 {[%clk 0:01:37]}  Nd7 {[%clk 0:00:12]} 47. Nf2 {[%clk 0:01:13]}  Nxb6 {[%clk 0:00:10]} 48. Ng4 {[%clk 0:01:14]}  Nd5 {[%clk 0:00:10]} 49. Qe5 {[%clk 0:01:13]}  Qc5+ {[%clk 0:00:09]} 50. Kf1 {[%clk 0:01:01]}  Qc1+ {[%clk 0:00:05]} 51. Kf2 {[%clk 0:01:01]}  Qc5+ {[%clk 0:00:05]} 52. Ne3 {[%clk 0:00:59]}  Nb4 {[%clk 0:00:05]} 53. Qe4 {[%clk 0:00:48]}  f5 {[%clk 0:00:04]} 54. Qe8+ {[%clk 0:00:38]}  Kg7 {[%clk 0:00:04]} 55. Qd7+ {[%clk 0:00:39]}  Kh6 {[%clk 0:00:04]} 56. Ke2 {[%clk 0:00:40]}  Nc2 {[%clk 0:00:03]} 57. Qd2 {[%clk 0:00:39]}  Nd4+ {[%clk 0:00:02]} 58. Kd3 {[%clk 0:00:32]}  Kh7 {[%clk 0:00:02]} 59. Qb2 {[%clk 0:00:32]}  Nb5 {[%clk 0:00:02]} 60. h5 {[%clk 0:00:20]}  gxh5 {[%clk 0:00:02]} 61. Qf6 {[%clk 0:00:20]}  Qd6+ {[%clk 0:00:02]} 62. Qxd6 {[%clk 0:00:19]}  Nxd6 {[%clk 0:00:03]} 63. Kd4 {[%clk 0:00:19]}  Kg6 {[%clk 0:00:04]} 64. Ke5 {[%clk 0:00:16]}  Nf7+ {[%clk 0:00:04]} 65. Kf4 {[%clk 0:00:16]}  Nd6 {[%clk 0:00:04]} 66. Nd5 {[%clk 0:00:16]}  h4 {[%clk 0:00:03]} 67. Ke5 {[%clk 0:00:14]}  Nf7+ {[%clk 0:00:03]} 68. Kf4 {[%clk 0:00:14]}  Nd6 {[%clk 0:00:03]} 69. Nb6 {[%clk 0:00:08]}  Kf6 {[%clk 0:00:02]} 70. Nd7+ {[%clk 0:00:09]}  Kg6 {[%clk 0:00:02]} 71. Ne5+ {[%clk 0:00:09]}  Kf6 {[%clk 0:00:02]} 72. Nd7+ {[%clk 0:00:08]}  Kg6 {[%clk 0:00:03]} 73. Nb6 {[%clk 0:00:06]}  Kf6 {[%clk 0:00:03]} 74. Nd5+ {[%clk 0:00:07]}  Kg6 {[%clk 0:00:03]} 1/2-1/2


[Site "https://www.chess.com"]

[Event "Titled Tuesday Blitz December 13 Early 2022"]
[White "Yedidia, Daniel"]
[Black "Agasarov, Benik"]
[WhiteFideId "30905907"]
[BlackFideId "13314823"]
[WhiteElo "2556"]
[BlackElo "2179"]
[Result "0-1"]
[Round "06"]
[TimeControl "180+1"]
[Date "2022.12.14"]
[WhiteClock "0:00:04"]
[BlackClock "0:00:07"]

1. d4 {[%clk 0:03:00]}  Nf6 {[%clk 0:02:59]} 2. c4 {[%clk 0:03:00]}  g6 {[%clk 0:02:59]} 3. Nc3 {[%clk 0:03:00]}  Bg7 {[%clk 0:02:59]} 4. e4 {[%clk 0:03:01]}  d6 {[%clk 0:02:59]} 5. Nf3 {[%clk 0:03:02]}  O-O {[%clk 0:02:59]} 6. Be2 {[%clk 0:03:02]}  e5 {[%clk 0:03:00]} 7. Be3 {[%clk 0:03:03]}  Nbd7 {[%clk 0:02:41]} 8. O-O {[%clk 0:03:01]}  Qe7 {[%clk 0:02:30]} 9. d5 {[%clk 0:02:59]}  c5 {[%clk 0:02:21]} 10. dxc6 {[%clk 0:02:54]}  bxc6 {[%clk 0:02:21]} 11. Ne1 {[%clk 0:02:51]}  Bb7 {[%clk 0:02:09]} 12. b4 {[%clk 0:02:47]}  Rfd8 {[%clk 0:02:01]} 13. Qc2 {[%clk 0:02:43]}  d5 {[%clk 0:02:00]} 14. cxd5 {[%clk 0:02:38]}  cxd5 {[%clk 0:01:59]} 15. Nxd5 {[%clk 0:02:32]}  Nxd5 {[%clk 0:01:57]} 16. exd5 {[%clk 0:02:32]}  Bxd5 {[%clk 0:01:57]} 17. Rd1 {[%clk 0:02:26]}  Nb6 {[%clk 0:01:49]} 18. Bc5 {[%clk 0:02:22]}  Qb7 {[%clk 0:01:33]} 19. Bf3 {[%clk 0:01:50]}  e4 {[%clk 0:01:29]} 20. Be2 {[%clk 0:01:50]}  Be6 {[%clk 0:01:23]} 21. Rxd8+ {[%clk 0:01:46]}  Rxd8 {[%clk 0:01:24]} 22. a3 {[%clk 0:01:33]}  Nd5 {[%clk 0:01:22]} 23. Qxe4 {[%clk 0:01:24]}  Qc7 {[%clk 0:01:05]} 24. Bf3 {[%clk 0:01:21]}  Nc3 {[%clk 0:01:03]} 25. Qh4 {[%clk 0:01:11]}  Re8 {[%clk 0:00:54]} 26. Nc2 {[%clk 0:01:06]}  a5 {[%clk 0:00:46]} 27. Nd4 {[%clk 0:00:55]}  Bc4 {[%clk 0:00:41]} 28. Rc1 {[%clk 0:00:51]}  axb4 {[%clk 0:00:42]} 29. axb4 {[%clk 0:00:50]}  Bd5 {[%clk 0:00:31]} 30. Bxd5 {[%clk 0:00:34]}  Bxd4 {[%clk 0:00:32]} 31. Bf3 {[%clk 0:00:21]}  Bxc5 {[%clk 0:00:23]} 32. bxc5 {[%clk 0:00:20]}  Qxc5 {[%clk 0:00:23]} 33. Rf1 {[%clk 0:00:19]}  Qb5 {[%clk 0:00:19]} 34. h3 {[%clk 0:00:18]}  Qd3 {[%clk 0:00:12]} 35. Ra1 {[%clk 0:00:12]}  Qd2 {[%clk 0:00:11]} 36. Ra8 {[%clk 0:00:05]}  Ne2+ {[%clk 0:00:08]} 37. Kh2 {[%clk 0:00:04]}  Rxa8 {[%clk 0:00:08]} 38. Bxa8 {[%clk 0:00:04]}  Qd1 {[%clk 0:00:07]} 0-1


[Site "https://www.chess.com"]

[Event "Titled Tuesday Blitz December 13 Early 2022"]
[White "Agasarov, Benik"]
[Black "Jimenez Almeida, Luis David"]
[WhiteFideId "13314823"]
[BlackFideId "22242244"]
[WhiteElo "2179"]
[BlackElo "2158"]
[Result "1-0"]
[Round "07"]
[TimeControl "180+1"]
[Date "2022.12.14"]
[WhiteClock "0:00:05"]
[BlackClock "0:00:01"]

1. e4 {[%clk 0:03:00]}  Nf6 {[%clk 0:02:57]} 2. e5 {[%clk 0:02:57]}  Nd5 {[%clk 0:02:57]} 3. d4 {[%clk 0:02:57]}  d6 {[%clk 0:02:58]} 4. Nf3 {[%clk 0:02:58]}  Bg4 {[%clk 0:02:56]} 5. Bc4 {[%clk 0:02:58]}  dxe5 {[%clk 0:02:51]} 6. h3 {[%clk 0:02:47]}  Bh5 {[%clk 0:02:39]} 7. g4 {[%clk 0:02:41]}  Bg6 {[%clk 0:02:39]} 8. Nxe5 {[%clk 0:02:41]}  Nb6 {[%clk 0:02:34]} 9. Bb3 {[%clk 0:02:30]}  e6 {[%clk 0:02:30]} 10. Qf3 {[%clk 0:02:27]}  Qxd4 {[%clk 0:02:14]} 11. Nxg6 {[%clk 0:02:24]}  hxg6 {[%clk 0:02:15]} 12. Qxb7 {[%clk 0:02:21]}  Qe5+ {[%clk 0:01:57]} 13. Be3 {[%clk 0:02:14]}  N8d7 {[%clk 0:01:38]} 14. Nc3 {[%clk 0:02:09]}  Bc5 {[%clk 0:01:17]} 15. Qe4 {[%clk 0:01:56]}  Qxe4 {[%clk 0:01:15]} 16. Nxe4 {[%clk 0:01:57]}  Bxe3 {[%clk 0:01:15]} 17. fxe3 {[%clk 0:01:58]}  Ke7 {[%clk 0:01:15]} 18. Ke2 {[%clk 0:01:58]}  Ne5 {[%clk 0:01:12]} 19. Rad1 {[%clk 0:01:56]}  Rhd8 {[%clk 0:01:09]} 20. c3 {[%clk 0:01:52]}  a5 {[%clk 0:01:07]} 21. Bc2 {[%clk 0:01:51]}  a4 {[%clk 0:01:04]} 22. Nc5 {[%clk 0:01:51]}  a3 {[%clk 0:01:03]} 23. Rxd8 {[%clk 0:01:46]}  Kxd8 {[%clk 0:00:57]} 24. Rd1+ {[%clk 0:01:45]}  Ke7 {[%clk 0:00:57]} 25. b3 {[%clk 0:01:45]}  Nd5 {[%clk 0:00:55]} 26. Na4 {[%clk 0:01:00]}  Rh8 {[%clk 0:00:54]} 27. Be4 {[%clk 0:00:52]}  c6 {[%clk 0:00:43]} 28. Bg2 {[%clk 0:00:45]}  g5 {[%clk 0:00:35]} 29. c4 {[%clk 0:00:42]}  Nb4 {[%clk 0:00:34]} 30. Nc3 {[%clk 0:00:40]}  Rd8 {[%clk 0:00:32]} 31. Rxd8 {[%clk 0:00:39]}  Kxd8 {[%clk 0:00:33]} 32. Nb1 {[%clk 0:00:38]}  Nxa2 {[%clk 0:00:31]} 33. Nxa3 {[%clk 0:00:39]}  Nc1+ {[%clk 0:00:31]} 34. Kd2 {[%clk 0:00:35]}  Nxb3+ {[%clk 0:00:32]} 35. Kc3 {[%clk 0:00:35]}  Nc5 {[%clk 0:00:30]} 36. Kd4 {[%clk 0:00:36]}  Ncd7 {[%clk 0:00:30]} 37. c5 {[%clk 0:00:36]}  Kc7 {[%clk 0:00:29]} 38. Nc2 {[%clk 0:00:35]}  f6 {[%clk 0:00:25]} 39. Nb4 {[%clk 0:00:35]}  Nf8 {[%clk 0:00:21]} 40. Be4 {[%clk 0:00:31]}  Nfg6 {[%clk 0:00:20]} 41. Na6+ {[%clk 0:00:25]}  Kd7 {[%clk 0:00:20]} 42. Nb4 {[%clk 0:00:26]}  Nh4 {[%clk 0:00:19]} 43. Na6 {[%clk 0:00:20]}  Nhf3+ {[%clk 0:00:16]} 44. Kc3 {[%clk 0:00:20]}  Ng1 {[%clk 0:00:17]} 45. Bg2 {[%clk 0:00:19]}  Ne2+ {[%clk 0:00:16]} 46. Kd2 {[%clk 0:00:19]}  Ng3 {[%clk 0:00:15]} 47. Nb8+ {[%clk 0:00:19]}  Kc7 {[%clk 0:00:15]} 48. Na6+ {[%clk 0:00:19]}  Kb7 {[%clk 0:00:15]} 49. Nb4 {[%clk 0:00:20]}  Kc7 {[%clk 0:00:15]} 50. Ke1 {[%clk 0:00:19]}  f5 {[%clk 0:00:14]} 51. Nc2 {[%clk 0:00:15]}  f4 {[%clk 0:00:14]} 52. Kf2 {[%clk 0:00:13]}  Nd3+ {[%clk 0:00:13]} 53. Kf3 {[%clk 0:00:14]}  Nxc5 {[%clk 0:00:14]} 54. exf4 {[%clk 0:00:14]}  gxf4 {[%clk 0:00:14]} 55. Kxf4 {[%clk 0:00:14]}  Ne2+ {[%clk 0:00:13]} 56. Ke3 {[%clk 0:00:15]}  Nc3 {[%clk 0:00:13]} 57. Kd4 {[%clk 0:00:15]}  N3a4 {[%clk 0:00:12]} 58. Nb4 {[%clk 0:00:15]}  Kd6 {[%clk 0:00:11]} 59. Nxc6 {[%clk 0:00:15]}  Nd7 {[%clk 0:00:11]} 60. Ke3 {[%clk 0:00:13]}  Nac5 {[%clk 0:00:09]} 61. Nd4 {[%clk 0:00:13]}  g6 {[%clk 0:00:08]} 62. Ne2 {[%clk 0:00:12]}  e5 {[%clk 0:00:08]} 63. Nc3 {[%clk 0:00:12]}  Ke6 {[%clk 0:00:08]} 64. Bd5+ {[%clk 0:00:11]}  Kf6 {[%clk 0:00:08]} 65. h4 {[%clk 0:00:12]}  g5 {[%clk 0:00:08]} 66. h5 {[%clk 0:00:12]}  Ne6 {[%clk 0:00:08]} 67. Ne4+ {[%clk 0:00:11]}  Ke7 {[%clk 0:00:06]} 68. Bxe6 {[%clk 0:00:12]}  Kxe6 {[%clk 0:00:07]} 69. Nxg5+ {[%clk 0:00:12]}  Kf6 {[%clk 0:00:07]} 70. Ne4+ {[%clk 0:00:13]}  Ke6 {[%clk 0:00:08]} 71. g5 {[%clk 0:00:12]}  Nf8 {[%clk 0:00:07]} 72. Kf3 {[%clk 0:00:11]}  Kf5 {[%clk 0:00:08]} 73. Kg3 {[%clk 0:00:06]}  Ne6 {[%clk 0:00:08]} 74. g6 {[%clk 0:00:06]}  Ng7 {[%clk 0:00:03]} 75. Kh4 {[%clk 0:00:04]}  Ke6 {[%clk 0:00:03]} 76. Kg5 {[%clk 0:00:04]}  Ke7 {[%clk 0:00:02]} 77. h6 {[%clk 0:00:04]}  Ne6+ {[%clk 0:00:01]} 78. Kf5 {[%clk 0:00:05]} 1-0


[Site "https://www.chess.com"]

[Event "Titled Tuesday Blitz December 13 Early 2022"]
[White "Alice, Mateus Felizardo Viageiro"]
[Black "Bogaudinov, Rushan"]
[WhiteFideId "14800047"]
[BlackFideId "4129288"]
[WhiteElo "2189"]
[BlackElo "2028"]
[Result "1-0"]
[Round "07"]
[TimeControl "180+1"]
[Date "2022.12.14"]
[WhiteClock "0:01:23"]
[BlackClock "0:00:20"]

1. e4 {[%clk 0:03:00]}  c5 {[%clk 0:02:59]} 2. Nf3 {[%clk 0:03:00]}  d6 {[%clk 0:02:58]} 3. d4 {[%clk 0:03:01]}  cxd4 {[%clk 0:02:59]} 4. Nxd4 {[%clk 0:03:00]}  Nf6 {[%clk 0:03:00]} 5. Nc3 {[%clk 0:03:01]}  a6 {[%clk 0:03:00]} 6. f3 {[%clk 0:03:00]}  g6 {[%clk 0:02:59]} 7. Be3 {[%clk 0:02:59]}  Bg7 {[%clk 0:03:00]} 8. Qd2 {[%clk 0:03:00]}  h5 {[%clk 0:03:00]} 9. O-O-O {[%clk 0:03:00]}  b5 {[%clk 0:02:59]} 10. Qe1 {[%clk 0:03:00]}  Nbd7 {[%clk 0:02:57]} 11. a3 {[%clk 0:02:57]}  Bb7 {[%clk 0:02:57]} 12. Nb3 {[%clk 0:02:52]}  Rc8 {[%clk 0:02:56]} 13. Kb1 {[%clk 0:02:51]}  O-O {[%clk 0:02:55]} 14. Bd4 {[%clk 0:02:50]}  Qc7 {[%clk 0:02:54]} 15. h3 {[%clk 0:02:49]}  Nc5 {[%clk 0:02:49]} 16. g4 {[%clk 0:02:43]}  Nxb3 {[%clk 0:02:46]} 17. cxb3 {[%clk 0:02:43]}  e5 {[%clk 0:02:31]} 18. Be3 {[%clk 0:02:39]}  d5 {[%clk 0:02:31]} 19. exd5 {[%clk 0:02:37]}  Rfd8 {[%clk 0:02:31]} 20. Bg5 {[%clk 0:02:29]}  b4 {[%clk 0:02:23]} 21. axb4 {[%clk 0:02:26]}  Qb6 {[%clk 0:02:14]} 22. Bc4 {[%clk 0:02:24]}  Qxb4 {[%clk 0:02:12]} 23. Ne4 {[%clk 0:02:23]}  Qb6 {[%clk 0:01:50]} 24. Bxf6 {[%clk 0:02:05]}  Bxf6 {[%clk 0:01:50]} 25. gxh5 {[%clk 0:02:05]}  Bg7 {[%clk 0:01:45]} 26. hxg6 {[%clk 0:02:04]}  f5 {[%clk 0:01:43]} 27. Ng5 {[%clk 0:01:47]}  Rd6 {[%clk 0:01:30]} 28. Ne6 {[%clk 0:01:44]}  Bf6 {[%clk 0:01:17]} 29. Qd2 {[%clk 0:01:38]}  e4 {[%clk 0:01:03]} 30. Qh6 {[%clk 0:01:36]}  Rd7 {[%clk 0:00:43]} 31. Nf8 {[%clk 0:01:26]}  Rxc4 {[%clk 0:00:32]} 32. Nxd7 {[%clk 0:01:25]}  Qd8 {[%clk 0:00:20]} 33. Qh7# {[%clk 0:01:23]} 1-0


[Site "https://www.chess.com"]

[Event "Titled Tuesday Blitz December 13 Early 2022"]
[White "Aloma Vidal, Robert"]
[Black "Cruz, William Ferreira Da"]
[WhiteFideId "2260409"]
[BlackFideId "2118050"]
[WhiteElo "2435"]
[BlackElo "2223"]
[Result "0-1"]
[Round "07"]
[TimeControl "180+1"]
[Date "2022.12.14"]
[WhiteClock "0:00:01"]
[BlackClock "0:00:05"]

1. e4 {[%clk 0:03:00]}  e6 {[%clk 0:02:59]} 2. d4 {[%clk 0:03:00]}  d5 {[%clk 0:03:00]} 3. e5 {[%clk 0:03:01]}  c5 {[%clk 0:02:59]} 4. c3 {[%clk 0:03:02]}  Nc6 {[%clk 0:02:59]} 5. Nf3 {[%clk 0:03:02]}  cxd4 {[%clk 0:02:59]} 6. cxd4 {[%clk 0:03:02]}  Nge7 {[%clk 0:02:59]} 7. Bd3 {[%clk 0:02:52]}  Nf5 {[%clk 0:02:59]} 8. Bxf5 {[%clk 0:02:52]}  exf5 {[%clk 0:02:59]} 9. Nc3 {[%clk 0:02:51]}  Be6 {[%clk 0:02:59]} 10. h4 {[%clk 0:02:44]}  h6 {[%clk 0:02:59]} 11. h5 {[%clk 0:02:41]}  Be7 {[%clk 0:02:59]} 12. Qb3 {[%clk 0:02:32]}  Qd7 {[%clk 0:02:49]} 13. Ne2 {[%clk 0:02:29]}  Na5 {[%clk 0:02:43]} 14. Qd3 {[%clk 0:02:25]}  Rc8 {[%clk 0:02:37]} 15. Rh3 {[%clk 0:02:15]}  Nc4 {[%clk 0:01:49]} 16. Rg3 {[%clk 0:02:12]}  Kf8 {[%clk 0:01:46]} 17. Nf4 {[%clk 0:01:44]}  a5 {[%clk 0:01:33]} 18. b3 {[%clk 0:01:41]}  Bb4+ {[%clk 0:01:29]} 19. Kf1 {[%clk 0:01:40]}  Na3 {[%clk 0:01:28]} 20. Nh4 {[%clk 0:01:18]}  Rc3 {[%clk 0:01:21]} 21. Nxe6+ {[%clk 0:01:05]}  Qxe6 {[%clk 0:01:14]} 22. Qxf5 {[%clk 0:00:53]}  Rxg3 {[%clk 0:01:13]} 23. fxg3 {[%clk 0:00:50]}  Qxf5+ {[%clk 0:01:11]} 24. Nxf5 {[%clk 0:00:51]}  g6 {[%clk 0:01:06]} 25. hxg6 {[%clk 0:00:43]}  fxg6 {[%clk 0:01:06]} 26. Ne3 {[%clk 0:00:41]}  Kf7 {[%clk 0:00:51]} 27. Bxa3 {[%clk 0:00:29]}  Bxa3 {[%clk 0:00:50]} 28. Nxd5 {[%clk 0:00:29]}  Bb2 {[%clk 0:00:51]} 29. Rd1 {[%clk 0:00:28]}  Rd8 {[%clk 0:00:49]} 30. Nf4 {[%clk 0:00:25]}  Rxd4 {[%clk 0:00:47]} 31. e6+ {[%clk 0:00:24]}  Kf6 {[%clk 0:00:42]} 32. Re1 {[%clk 0:00:21]}  Ba3 {[%clk 0:00:37]} 33. Re2 {[%clk 0:00:13]}  g5 {[%clk 0:00:33]} 34. Nh5+ {[%clk 0:00:13]}  Kg6 {[%clk 0:00:29]} 35. e7 {[%clk 0:00:13]}  Bxe7 {[%clk 0:00:28]} 36. Rxe7 {[%clk 0:00:14]}  Kxh5 {[%clk 0:00:28]} 37. Rxb7 {[%clk 0:00:14]}  Rd2 {[%clk 0:00:27]} 38. a4 {[%clk 0:00:12]}  Rb2 {[%clk 0:00:26]} 39. Rb5 {[%clk 0:00:11]}  Kg4 {[%clk 0:00:26]} 40. Rxa5 {[%clk 0:00:11]}  Rxb3 {[%clk 0:00:26]} 41. Rb5 {[%clk 0:00:10]}  Ra3 {[%clk 0:00:18]} 42. Rb4+ {[%clk 0:00:10]}  Kxg3 {[%clk 0:00:17]} 43. Rb6 {[%clk 0:00:09]}  Ra1+ {[%clk 0:00:16]} 44. Ke2 {[%clk 0:00:09]}  h5 {[%clk 0:00:16]} 45. Rb5 {[%clk 0:00:07]}  g4 {[%clk 0:00:12]} 46. Rxh5 {[%clk 0:00:05]}  Rxa4 {[%clk 0:00:12]} 47. Kf1 {[%clk 0:00:04]}  Ra1+ {[%clk 0:00:12]} 48. Ke2 {[%clk 0:00:04]}  Kxg2 {[%clk 0:00:12]} 49. Rh8 {[%clk 0:00:03]}  g3 {[%clk 0:00:12]} 50. Rg8 {[%clk 0:00:03]}  Ra6 {[%clk 0:00:11]} 51. Ke1 {[%clk 0:00:03]}  Re6+ {[%clk 0:00:11]} 52. Kd2 {[%clk 0:00:03]}  Re4 {[%clk 0:00:10]} 53. Kd3 {[%clk 0:00:03]}  Re5 {[%clk 0:00:10]} 54. Kd4 {[%clk 0:00:03]}  Re2 {[%clk 0:00:09]} 55. Kd3 {[%clk 0:00:04]}  Re7 {[%clk 0:00:09]} 56. Kd2 {[%clk 0:00:04]}  Kf2 {[%clk 0:00:08]} 57. Rf8+ {[%clk 0:00:04]}  Kg1 {[%clk 0:00:08]} 58. Rg8 {[%clk 0:00:05]}  g2 {[%clk 0:00:09]} 59. Rf8 {[%clk 0:00:04]}  Re5 {[%clk 0:00:07]} 60. Kd3 {[%clk 0:00:04]}  Kh2 {[%clk 0:00:07]} 61. Rh8+ {[%clk 0:00:03]}  Kg3 {[%clk 0:00:07]} 62. Kd4 {[%clk 0:00:03]}  Re6 {[%clk 0:00:06]} 63. Rg8+ {[%clk 0:00:02]}  Kf2 {[%clk 0:00:05]} 64. Kd5 {[%clk 0:00:01]}  Re3 {[%clk 0:00:05]} 65. Kd4 {[%clk 0:00:01]}  Rg3 {[%clk 0:00:05]} 66. Rf8+ {[%clk 0:00:01]}  Ke1 {[%clk 0:00:05]} 0-1


[Site "https://www.chess.com"]

[Event "Titled Tuesday Blitz December 13 Early 2022"]
[White "Andreikin, Dmitry"]
[Black "Jobava, Baadur"]
[WhiteFideId "4158814"]
[BlackFideId "13601520"]
[WhiteElo "2735"]
[BlackElo "2582"]
[Result "1-0"]
[Round "07"]
[TimeControl "180+1"]
[Date "2022.12.13"]
[WhiteClock "0:00:06"]
[BlackClock "0:00:11"]

1. d4 {[%clk 0:03:00]}  Nf6 {[%clk 0:02:57]} 2. c4 {[%clk 0:03:00]}  c5 {[%clk 0:02:58]} 3. Nf3 {[%clk 0:02:58]}  cxd4 {[%clk 0:02:56]} 4. Nxd4 {[%clk 0:02:58]}  e5 {[%clk 0:02:57]} 5. Nf3 {[%clk 0:02:51]}  Nc6 {[%clk 0:02:47]} 6. e3 {[%clk 0:02:49]}  d5 {[%clk 0:02:38]} 7. cxd5 {[%clk 0:02:48]}  Qxd5 {[%clk 0:02:38]} 8. Qxd5 {[%clk 0:02:44]}  Nxd5 {[%clk 0:02:39]} 9. a3 {[%clk 0:02:44]}  f6 {[%clk 0:02:33]} 10. Bd2 {[%clk 0:02:44]}  Be6 {[%clk 0:02:33]} 11. Nc3 {[%clk 0:02:40]}  Nxc3 {[%clk 0:02:32]} 12. Bxc3 {[%clk 0:02:40]}  Rc8 {[%clk 0:02:29]} 13. Nd2 {[%clk 0:02:33]}  Kf7 {[%clk 0:02:28]} 14. Bd3 {[%clk 0:02:26]}  Be7 {[%clk 0:02:25]} 15. Ke2 {[%clk 0:02:25]}  Rhd8 {[%clk 0:02:24]} 16. Rhd1 {[%clk 0:02:21]}  h5 {[%clk 0:02:16]} 17. h3 {[%clk 0:02:19]}  h4 {[%clk 0:02:14]} 18. Rac1 {[%clk 0:02:13]}  Rd7 {[%clk 0:02:09]} 19. Be4 {[%clk 0:02:04]}  Rdc7 {[%clk 0:02:04]} 20. Nf3 {[%clk 0:01:58]}  g5 {[%clk 0:02:03]} 21. Bd5 {[%clk 0:01:49]}  Bxd5 {[%clk 0:01:42]} 22. Rxd5 {[%clk 0:01:50]}  e4 {[%clk 0:01:43]} 23. Nd4 {[%clk 0:01:03]}  Nxd4+ {[%clk 0:01:43]} 24. Rxd4 {[%clk 0:01:04]}  Bxa3 {[%clk 0:01:43]} 25. Ra1 {[%clk 0:00:52]}  Bc5 {[%clk 0:01:44]} 26. Rxe4 {[%clk 0:00:50]}  b6 {[%clk 0:01:32]} 27. f4 {[%clk 0:00:44]}  Rg8 {[%clk 0:00:56]} 28. f5 {[%clk 0:00:34]}  Rd8 {[%clk 0:00:46]} 29. Re6 {[%clk 0:00:32]}  Rd6 {[%clk 0:00:46]} 30. b4 {[%clk 0:00:28]}  Rxe6 {[%clk 0:00:47]} 31. fxe6+ {[%clk 0:00:27]}  Kxe6 {[%clk 0:00:48]} 32. bxc5 {[%clk 0:00:28]}  Rxc5 {[%clk 0:00:48]} 33. Kd3 {[%clk 0:00:22]}  Rc7 {[%clk 0:00:43]} 34. e4 {[%clk 0:00:20]}  Rd7+ {[%clk 0:00:42]} 35. Bd4 {[%clk 0:00:19]}  f5 {[%clk 0:00:38]} 36. exf5+ {[%clk 0:00:19]}  Kxf5 {[%clk 0:00:39]} 37. Rf1+ {[%clk 0:00:19]}  Kg6 {[%clk 0:00:39]} 38. Ke4 {[%clk 0:00:16]}  Rc7 {[%clk 0:00:34]} 39. Rf6+ {[%clk 0:00:15]}  Kh5 {[%clk 0:00:34]} 40. Kf5 {[%clk 0:00:11]}  Rc1 {[%clk 0:00:35]} 41. Rd6 {[%clk 0:00:07]}  Rf1+ {[%clk 0:00:35]} 42. Ke4 {[%clk 0:00:08]}  Rd1 {[%clk 0:00:26]} 43. Rc6 {[%clk 0:00:07]}  Rd2 {[%clk 0:00:13]} 44. Bg7 {[%clk 0:00:07]}  g4 {[%clk 0:00:13]} 45. Bd4 {[%clk 0:00:08]}  Rxg2 {[%clk 0:00:11]} 46. Be3 {[%clk 0:00:08]}  gxh3 {[%clk 0:00:11]} 47. Kf5 {[%clk 0:00:06]} 1-0


[Site "https://www.chess.com"]